[Event "Titled Tuesday Blitz April 18 Late 2023"]
[White "Bilan, Danila"]
[Black "crosky"]
[WhiteFideId "24161918"]
[WhiteElo "2182"]
[BlackElo "2356"]
[Result "0-1"]
[Round "04"]
[TimeControl "180+2"]
[Date "2023.04.18"]
[WhiteClock "0:00:01"]
[BlackClock "0:00:04"]

1. d4 {[%clk 0:03:00]}  Nf6 {[%clk 0:02:59]} 2. Nf3 {[%clk 0:03:00]}  e6 {[%clk 0:02:59]} 3. g3 {[%clk 0:03:01]}  b5 {[%clk 0:02:59]} 4. Bg2 {[%clk 0:03:01]}  Bb7 {[%clk 0:03:00]} 5. O-O {[%clk 0:03:02]}  c5 {[%clk 0:03:00]} 6. a4 {[%clk 0:03:01]}  b4 {[%clk 0:03:00]} 7. c4 {[%clk 0:03:02]}  cxd4 {[%clk 0:02:40]} 8. Qxd4 {[%clk 0:02:59]}  Be7 {[%clk 0:02:26]} 9. b3 {[%clk 0:02:51]}  O-O {[%clk 0:02:25]} 10. Bb2 {[%clk 0:02:51]}  Qc7 {[%clk 0:02:19]} 11. Nbd2 {[%clk 0:02:45]}  d6 {[%clk 0:01:56]} 12. Rac1 {[%clk 0:02:24]}  Nc6 {[%clk 0:01:52]} 13. Qd3 {[%clk 0:02:20]}  e5 {[%clk 0:01:43]} 14. Rfd1 {[%clk 0:01:55]}  Rad8 {[%clk 0:01:43]} 15. Ng5 {[%clk 0:01:44]}  h6 {[%clk 0:01:34]} 16. Nge4 {[%clk 0:01:40]}  Nxe4 {[%clk 0:01:33]} 17. Bxe4 {[%clk 0:01:35]}  Nb8 {[%clk 0:01:18]} 18. Nf1 {[%clk 0:01:05]}  Nd7 {[%clk 0:01:14]} 19. Bxb7 {[%clk 0:01:02]}  Qxb7 {[%clk 0:01:15]} 20. Ne3 {[%clk 0:01:02]}  Nc5 {[%clk 0:01:11]} 21. Qc2 {[%clk 0:01:01]}  Bg5 {[%clk 0:01:06]} 22. Nd5 {[%clk 0:00:42]}  Bxc1 {[%clk 0:01:05]} 23. Bxc1 {[%clk 0:00:43]}  Qd7 {[%clk 0:00:48]} 24. Bxh6 {[%clk 0:00:39]}  Qh3 {[%clk 0:00:33]} 25. Be3 {[%clk 0:00:32]}  Ne6 {[%clk 0:00:29]} 26. Bxa7 {[%clk 0:00:24]}  f5 {[%clk 0:00:29]} 27. Bb6 {[%clk 0:00:17]}  Rb8 {[%clk 0:00:21]} 28. a5 {[%clk 0:00:16]}  f4 {[%clk 0:00:21]} 29. Ne7+ {[%clk 0:00:12]}  Kf7 {[%clk 0:00:19]} 30. Nd5 {[%clk 0:00:10]}  fxg3 {[%clk 0:00:18]} 31. fxg3 {[%clk 0:00:10]}  Rbe8 {[%clk 0:00:12]} 32. a6 {[%clk 0:00:05]}  Kg8 {[%clk 0:00:07]} 33. e3 {[%clk 0:00:04]}  Ng5 {[%clk 0:00:06]} 34. Qg2 {[%clk 0:00:04]}  Nf3+ {[%clk 0:00:06]} 35. Kh1 {[%clk 0:00:04]}  Qh5 {[%clk 0:00:03]} 36. a7 {[%clk 0:00:05]}  Nxh2 {[%clk 0:00:03]} 37. Ra1 {[%clk 0:00:02]}  Ng4+ {[%clk 0:00:03]} 38. Qh3 {[%clk 0:00:02]}  Qxh3+ {[%clk 0:00:03]} 39. Kg1 {[%clk 0:00:02]}  Rf2 {[%clk 0:00:04]} 40. a8=Q {[%clk 0:00:01]}  Qh2# {[%clk 0:00:04]} 0-1


[Site "https://www.chess.com"]

[Event "Titled Tuesday Blitz April 18 Late 2023"]
[White "Sonnenschein, Philipp"]
[Black "mohsengabr2002"]
[WhiteFideId "16250877"]
[WhiteElo "2224"]
[BlackElo "2351"]
[Result "1-0"]
[Round "04"]
[TimeControl "180+2"]
[Date "2023.04.18"]
[WhiteClock "0:00:28"]
[BlackClock "0:00:57"]

1. d4 {[%clk 0:03:00]}  g6 {[%clk 0:02:57]} 2. e4 {[%clk 0:03:00]}  Bg7 {[%clk 0:02:58]} 3. Nc3 {[%clk 0:03:01]}  e6 {[%clk 0:02:58]} 4. h4 {[%clk 0:02:57]}  h5 {[%clk 0:02:57]} 5. Bg5 {[%clk 0:02:55]}  Ne7 {[%clk 0:02:57]} 6. Nf3 {[%clk 0:02:50]}  d6 {[%clk 0:02:53]} 7. Qd2 {[%clk 0:02:48]}  c6 {[%clk 0:02:52]} 8. O-O-O {[%clk 0:02:42]}  b5 {[%clk 0:02:52]} 9. Kb1 {[%clk 0:02:36]}  Nd7 {[%clk 0:02:46]} 10. d5 {[%clk 0:02:23]}  cxd5 {[%clk 0:02:39]} 11. Nxb5 {[%clk 0:02:18]}  Nb6 {[%clk 0:02:33]} 12. exd5 {[%clk 0:02:12]}  Nbxd5 {[%clk 0:02:32]} 13. c4 {[%clk 0:02:09]}  a6 {[%clk 0:02:28]} 14. Na3 {[%clk 0:01:52]}  Rb8 {[%clk 0:02:26]} 15. cxd5 {[%clk 0:01:49]}  Rxb2+ {[%clk 0:02:25]} 16. Qxb2 {[%clk 0:01:49]}  Bxb2 {[%clk 0:02:25]} 17. Kxb2 {[%clk 0:01:50]}  Qb6+ {[%clk 0:02:24]} 18. Ka1 {[%clk 0:01:48]}  Nxd5 {[%clk 0:02:24]} 19. Bc4 {[%clk 0:01:32]}  Qc5 {[%clk 0:02:00]} 20. Bxd5 {[%clk 0:01:19]}  Qxa3 {[%clk 0:02:00]} 21. Bc6+ {[%clk 0:01:13]}  Bd7 {[%clk 0:02:00]} 22. Bxd7+ {[%clk 0:01:11]}  Kxd7 {[%clk 0:02:01]} 23. Ne5+ {[%clk 0:01:03]}  Kc8 {[%clk 0:01:53]} 24. Rc1+ {[%clk 0:01:00]}  Kb7 {[%clk 0:01:54]} 25. Nc4 {[%clk 0:00:55]}  Qc5 {[%clk 0:01:47]} 26. Be7 {[%clk 0:00:49]}  Qd4+ {[%clk 0:01:44]} 27. Nb2 {[%clk 0:00:49]}  Rc8 {[%clk 0:01:35]} 28. Rxc8 {[%clk 0:00:44]}  Kxc8 {[%clk 0:01:35]} 29. f3 {[%clk 0:00:37]}  Kd7 {[%clk 0:01:32]} 30. Rd1 {[%clk 0:00:36]}  Qf2 {[%clk 0:01:14]} 31. Bxd6 {[%clk 0:00:36]}  Qxg2 {[%clk 0:01:13]} 32. Nc4 {[%clk 0:00:31]}  e5 {[%clk 0:01:01]} 33. Bxe5+ {[%clk 0:00:29]}  Ke6 {[%clk 0:01:00]} 34. Rd6+ {[%clk 0:00:27]}  Ke7 {[%clk 0:00:58]} 35. Bf6+ {[%clk 0:00:28]}  Ke8 {[%clk 0:00:57]} 36. Rd8# {[%clk 0:00:28]} 1-0


[Site "https://www.chess.com"]

[Event "Titled Tuesday Blitz April 18 Late 2023"]
[White "Rodriguez Santiago, Jaime"]
[Black "Rios Escobar, Adan"]
[WhiteFideId "3100898"]
[BlackFideId "3403645"]
[WhiteElo "2025"]
[BlackElo "2491"]
[Result "0-1"]
[Round "04"]
[TimeControl "180+2"]
[Date "2023.04.18"]
[WhiteClock "0:00:06"]
[BlackClock "0:00:04"]

1. c4 {[%clk 0:03:00]}  Nf6 {[%clk 0:02:59]} 2. Nc3 {[%clk 0:02:59]}  g6 {[%clk 0:03:00]} 3. g3 {[%clk 0:02:59]}  c5 {[%clk 0:02:58]} 4. Bg2 {[%clk 0:02:59]}  Bg7 {[%clk 0:02:59]} 5. e4 {[%clk 0:02:59]}  d6 {[%clk 0:02:58]} 6. Nge2 {[%clk 0:02:59]}  O-O {[%clk 0:02:59]} 7. d3 {[%clk 0:02:58]}  Nc6 {[%clk 0:02:59]} 8. O-O {[%clk 0:02:58]}  Rb8 {[%clk 0:02:59]} 9. h3 {[%clk 0:02:56]}  a6 {[%clk 0:02:59]} 10. a4 {[%clk 0:02:56]}  b6 {[%clk 0:02:57]} 11. Be3 {[%clk 0:02:54]}  Bb7 {[%clk 0:02:56]} 12. Rb1 {[%clk 0:02:52]}  Nd7 {[%clk 0:02:56]} 13. f4 {[%clk 0:02:35]}  Nd4 {[%clk 0:02:54]} 14. b4 {[%clk 0:02:31]}  e6 {[%clk 0:02:47]} 15. Qd2 {[%clk 0:02:24]}  Ba8 {[%clk 0:02:24]} 16. g4 {[%clk 0:02:16]}  f5 {[%clk 0:02:21]} 17. g5 {[%clk 0:01:55]}  e5 {[%clk 0:02:13]} 18. Nd5 {[%clk 0:01:45]}  Bxd5 {[%clk 0:02:03]} 19. exd5 {[%clk 0:01:30]}  Nxe2+ {[%clk 0:02:01]} 20. Qxe2 {[%clk 0:01:29]}  exf4 {[%clk 0:02:01]} 21. Bxf4 {[%clk 0:01:28]}  Bd4+ {[%clk 0:02:01]} 22. Kh1 {[%clk 0:01:27]}  Ne5 {[%clk 0:02:01]} 23. b5 {[%clk 0:01:14]}  axb5 {[%clk 0:01:57]} 24. axb5 {[%clk 0:01:14]}  Ra8 {[%clk 0:01:56]} 25. h4 {[%clk 0:01:11]}  Qd7 {[%clk 0:01:46]} 26. h5 {[%clk 0:01:07]}  Ra3 {[%clk 0:01:44]} 27. Rbd1 {[%clk 0:01:00]}  Rfa8 {[%clk 0:01:43]} 28. Rd2 {[%clk 0:00:44]}  Rb3 {[%clk 0:01:37]} 29. Bxe5 {[%clk 0:00:43]}  Bxe5 {[%clk 0:01:35]} 30. h6 {[%clk 0:00:41]}  Raa3 {[%clk 0:01:32]} 31. Rf3 {[%clk 0:00:38]}  Qd8 {[%clk 0:01:27]} 32. Qe3 {[%clk 0:00:35]}  Ra1+ {[%clk 0:00:54]} 33. Bf1 {[%clk 0:00:34]}  Rbb1 {[%clk 0:00:47]} 34. Rdf2 {[%clk 0:00:31]}  Re1 {[%clk 0:00:45]} 35. Qd2 {[%clk 0:00:29]}  Rad1 {[%clk 0:00:43]} 36. Qa2 {[%clk 0:00:27]}  Bd4 {[%clk 0:00:37]} 37. Qa7 {[%clk 0:00:10]}  Qxg5 {[%clk 0:00:32]} 38. Qb8+ {[%clk 0:00:07]}  Kf7 {[%clk 0:00:32]} 39. Qc7+ {[%clk 0:00:08]}  Re7 {[%clk 0:00:32]} 40. Qxd6 {[%clk 0:00:03]}  Bxf2 {[%clk 0:00:21]} 41. Rxf2 {[%clk 0:00:03]}  Qxh6+ {[%clk 0:00:18]} 42. Kg2 {[%clk 0:00:03]}  Qg5+ {[%clk 0:00:18]} 43. Qg3 {[%clk 0:00:03]}  Qxg3+ {[%clk 0:00:17]} 44. Kxg3 {[%clk 0:00:04]}  Re3+ {[%clk 0:00:13]} 45. Kg2 {[%clk 0:00:04]}  Ree1 {[%clk 0:00:13]} 46. Be2 {[%clk 0:00:04]}  Rd2 {[%clk 0:00:10]} 47. Kf3 {[%clk 0:00:04]}  g5 {[%clk 0:00:07]} 48. Ke3 {[%clk 0:00:04]}  Rdxe2+ {[%clk 0:00:07]} 49. Rxe2 {[%clk 0:00:05]}  Rxe2+ {[%clk 0:00:08]} 50. Kxe2 {[%clk 0:00:05]}  h5 {[%clk 0:00:07]} 51. Kf3 {[%clk 0:00:05]}  h4 {[%clk 0:00:07]} 52. Kg2 {[%clk 0:00:05]}  g4 {[%clk 0:00:07]} 53. Kh2 {[%clk 0:00:06]}  f4 {[%clk 0:00:07]} 54. d4 {[%clk 0:00:05]}  cxd4 {[%clk 0:00:06]} 55. c5 {[%clk 0:00:05]}  d3 {[%clk 0:00:03]} 56. cxb6 {[%clk 0:00:05]}  d2 {[%clk 0:00:03]} 57. b7 {[%clk 0:00:05]}  d1=Q {[%clk 0:00:04]} 58. b8=Q {[%clk 0:00:06]}  Qe2+ {[%clk 0:00:04]} 59. Kh1 {[%clk 0:00:06]}  Qf1+ {[%clk 0:00:03]} 60. Kh2 {[%clk 0:00:06]}  g3# {[%clk 0:00:04]} 0-1


[Site "https://www.chess.com"]

[Event "Titled Tuesday Blitz April 18 Late 2023"]
[White "Liu, Eric"]
[Black "Pesotskiy, Mikhail"]
[WhiteFideId "30960240"]
[BlackFideId "34164453"]
[WhiteElo "2094"]
[BlackElo "2131"]
[Result "1-0"]
[Round "04"]
[TimeControl "180+2"]
[Date "2023.04.18"]
[WhiteClock "0:01:06"]
[BlackClock "0:00:44"]

1. Nf3 {[%clk 0:03:00]}  Nf6 {[%clk 0:03:00]} 2. b3 {[%clk 0:03:01]}  b5 {[%clk 0:02:59]} 3. Bb2 {[%clk 0:03:02]}  Bb7 {[%clk 0:03:00]} 4. e3 {[%clk 0:03:03]}  a6 {[%clk 0:03:00]} 5. c4 {[%clk 0:03:00]}  bxc4 {[%clk 0:02:59]} 6. bxc4 {[%clk 0:03:01]}  e6 {[%clk 0:03:00]} 7. Be2 {[%clk 0:03:00]}  Be7 {[%clk 0:02:59]} 8. O-O {[%clk 0:03:00]}  O-O {[%clk 0:03:00]} 9. Qb3 {[%clk 0:02:58]}  Nc6 {[%clk 0:02:53]} 10. d4 {[%clk 0:02:30]}  Rb8 {[%clk 0:02:31]} 11. Nc3 {[%clk 0:02:25]}  Na5 {[%clk 0:02:24]} 12. Qc2 {[%clk 0:02:25]}  c5 {[%clk 0:02:22]} 13. Nd2 {[%clk 0:02:16]}  d5 {[%clk 0:02:21]} 14. cxd5 {[%clk 0:02:07]}  Nxd5 {[%clk 0:02:22]} 15. dxc5 {[%clk 0:02:04]}  Bxc5 {[%clk 0:01:52]} 16. Nxd5 {[%clk 0:02:04]}  Qxd5 {[%clk 0:01:45]} 17. Bf3 {[%clk 0:02:04]}  Qg5 {[%clk 0:01:45]} 18. Bxb7 {[%clk 0:01:59]}  Rxb7 {[%clk 0:01:45]} 19. Ne4 {[%clk 0:01:59]}  Qg6 {[%clk 0:01:42]} 20. Bxg7 {[%clk 0:01:07]}  Kxg7 {[%clk 0:01:18]} 21. Qxc5 {[%clk 0:01:06]}  Qxe4 {[%clk 0:01:18]} 22. Qg5+ {[%clk 0:01:07]}  Kh8 {[%clk 0:01:15]} 23. Qxa5 {[%clk 0:01:08]}  Rg8 {[%clk 0:01:10]} 24. g3 {[%clk 0:01:08]}  Rb2 {[%clk 0:00:44]} 25. Qc3+ {[%clk 0:01:06]} 1-0


[Site "https://www.chess.com"]

[Event "Titled Tuesday Blitz April 18 Late 2023"]
[White "Goncalves, Davi Sulzbacher"]
[Black "Seder, Mohammed"]
[WhiteFideId "2154510"]
[BlackFideId "11505567"]
[WhiteElo "2182"]
[BlackElo "1862"]
[Result "1-0"]
[Round "04"]
[TimeControl "180+2"]
[Date "2023.04.18"]
[WhiteClock "0:00:06"]
[BlackClock "0:00:02"]

1. d4 {[%clk 0:03:00]}  Nf6 {[%clk 0:02:59]} 2. Nf3 {[%clk 0:03:01]}  e6 {[%clk 0:02:58]} 3. Bg5 {[%clk 0:03:01]}  d5 {[%clk 0:02:56]} 4. e3 {[%clk 0:03:01]}  c5 {[%clk 0:02:55]} 5. c3 {[%clk 0:03:01]}  Nc6 {[%clk 0:02:54]} 6. Nbd2 {[%clk 0:03:01]}  Be7 {[%clk 0:02:48]} 7. Bd3 {[%clk 0:03:01]}  O-O {[%clk 0:02:47]} 8. O-O {[%clk 0:03:01]}  h6 {[%clk 0:02:47]} 9. Bh4 {[%clk 0:03:00]}  b6 {[%clk 0:02:46]} 10. Ne5 {[%clk 0:03:00]}  Nxe5 {[%clk 0:02:44]} 11. dxe5 {[%clk 0:03:01]}  Nd7 {[%clk 0:02:44]} 12. Bxe7 {[%clk 0:02:56]}  Qxe7 {[%clk 0:02:45]} 13. f4 {[%clk 0:02:56]}  Bb7 {[%clk 0:02:41]} 14. Qh5 {[%clk 0:02:45]}  Rad8 {[%clk 0:02:37]} 15. Rad1 {[%clk 0:02:23]}  Nb8 {[%clk 0:02:16]} 16. g4 {[%clk 0:01:58]}  d4 {[%clk 0:02:13]} 17. exd4 {[%clk 0:01:38]}  cxd4 {[%clk 0:02:14]} 18. c4 {[%clk 0:01:38]}  Na6 {[%clk 0:02:02]} 19. g5 {[%clk 0:01:35]}  Nc5 {[%clk 0:02:00]} 20. Bb1 {[%clk 0:01:29]}  d3 {[%clk 0:01:49]} 21. gxh6 {[%clk 0:01:27]}  g6 {[%clk 0:01:49]} 22. Qg5 {[%clk 0:01:12]}  Qxg5+ {[%clk 0:01:43]} 23. fxg5 {[%clk 0:01:13]}  Rd4 {[%clk 0:01:44]} 24. Kf2 {[%clk 0:01:08]}  Rh4 {[%clk 0:01:18]} 25. Kg3 {[%clk 0:01:07]}  Rh5 {[%clk 0:01:17]} 26. h4 {[%clk 0:01:06]}  Rd8 {[%clk 0:01:11]} 27. Rf4 {[%clk 0:01:04]}  Nd7 {[%clk 0:01:05]} 28. Re1 {[%clk 0:01:00]}  Nc5 {[%clk 0:00:48]} 29. Ref1 {[%clk 0:00:56]}  Rf8 {[%clk 0:00:42]} 30. b3 {[%clk 0:00:51]}  a5 {[%clk 0:00:39]} 31. Rd4 {[%clk 0:00:46]}  Ba8 {[%clk 0:00:26]} 32. a3 {[%clk 0:00:42]}  Rc8 {[%clk 0:00:18]} 33. Rdf4 {[%clk 0:00:39]}  Rc7 {[%clk 0:00:17]} 34. Rd4 {[%clk 0:00:29]}  Nd7 {[%clk 0:00:16]} 35. Bxd3 {[%clk 0:00:26]}  Nxe5 {[%clk 0:00:16]} 36. Rd8+ {[%clk 0:00:26]}  Kh7 {[%clk 0:00:16]} 37. Be4 {[%clk 0:00:23]}  Bc6 {[%clk 0:00:14]} 38. Rf4 {[%clk 0:00:15]}  Rd7 {[%clk 0:00:09]} 39. Rxd7 {[%clk 0:00:14]}  Bxd7 {[%clk 0:00:09]} 40. Bg2 {[%clk 0:00:12]}  f5 {[%clk 0:00:10]} 41. Rd4 {[%clk 0:00:09]}  Bc6 {[%clk 0:00:09]} 42. Bxc6 {[%clk 0:00:09]}  Nxc6 {[%clk 0:00:10]} 43. Rd7+ {[%clk 0:00:10]}  Kg8 {[%clk 0:00:09]} 44. Nf3 {[%clk 0:00:10]}  e5 {[%clk 0:00:09]} 45. Rd6 {[%clk 0:00:10]}  e4 {[%clk 0:00:09]} 46. Rxg6+ {[%clk 0:00:10]}  Kh8 {[%clk 0:00:07]} 47. Rxc6 {[%clk 0:00:10]}  exf3 {[%clk 0:00:07]} 48. Kxf3 {[%clk 0:00:10]}  Rxh4 {[%clk 0:00:07]} 49. Rxb6 {[%clk 0:00:09]}  Rg4 {[%clk 0:00:07]} 50. Rg6 {[%clk 0:00:08]}  Rg1 {[%clk 0:00:05]} 51. Kf4 {[%clk 0:00:08]}  Rf1+ {[%clk 0:00:05]} 52. Ke5 {[%clk 0:00:08]}  Rb1 {[%clk 0:00:04]} 53. Rb6 {[%clk 0:00:08]}  a4 {[%clk 0:00:03]} 54. Rb8+ {[%clk 0:00:05]}  Kh7 {[%clk 0:00:02]} 55. Kf6 {[%clk 0:00:06]}  Rf1 {[%clk 0:00:01]} 56. g6+ {[%clk 0:00:06]}  Kxh6 {[%clk 0:00:02]} 57. Rh8# {[%clk 0:00:06]} 1-0


[Site "https://www.chess.com"]

[Event "Titled Tuesday Blitz April 18 Late 2023"]
[White "Lorenzo De La Riva, Lazaro"]
[Black "Ward, Ieuan C"]
[WhiteFideId "2268809"]
[BlackFideId "406627"]
[WhiteElo "2294"]
[BlackElo "2323"]
[Result "1-0"]
[Round "04"]
[TimeControl "180+2"]
[Date "2023.04.18"]
[WhiteClock "0:01:15"]
[BlackClock "0:00:07"]

1. c4 {[%clk 0:03:00]}  Nf6 {[%clk 0:02:59]} 2. g3 {[%clk 0:02:59]}  e6 {[%clk 0:02:56]} 3. Bg2 {[%clk 0:02:59]}  d5 {[%clk 0:02:57]} 4. Nf3 {[%clk 0:02:59]}  Be7 {[%clk 0:02:57]} 5. O-O {[%clk 0:02:59]}  O-O {[%clk 0:02:57]} 6. b3 {[%clk 0:02:59]}  b6 {[%clk 0:02:56]} 7. Bb2 {[%clk 0:02:59]}  Bb7 {[%clk 0:02:56]} 8. e3 {[%clk 0:02:59]}  c5 {[%clk 0:02:55]} 9. Qe2 {[%clk 0:02:58]}  Nbd7 {[%clk 0:02:53]} 10. Nc3 {[%clk 0:02:58]}  a6 {[%clk 0:02:48]} 11. Rfd1 {[%clk 0:02:58]}  Qc7 {[%clk 0:02:48]} 12. Rac1 {[%clk 0:02:58]}  Rac8 {[%clk 0:02:47]} 13. d4 {[%clk 0:02:58]}  cxd4 {[%clk 0:02:39]} 14. exd4 {[%clk 0:02:56]}  dxc4 {[%clk 0:02:35]} 15. Na4 {[%clk 0:02:56]}  b5 {[%clk 0:02:30]} 16. Nc3 {[%clk 0:02:53]}  b4 {[%clk 0:02:27]} 17. Na4 {[%clk 0:02:51]}  c3 {[%clk 0:02:25]} 18. Ba1 {[%clk 0:02:51]}  Qb8 {[%clk 0:02:19]} 19. a3 {[%clk 0:02:51]}  a5 {[%clk 0:02:15]} 20. Qb5 {[%clk 0:02:50]}  Bxf3 {[%clk 0:02:11]} 21. Qxb8 {[%clk 0:02:49]}  Rxb8 {[%clk 0:02:09]} 22. Bxf3 {[%clk 0:02:50]}  Nd5 {[%clk 0:02:05]} 23. axb4 {[%clk 0:02:46]}  axb4 {[%clk 0:02:03]} 24. Re1 {[%clk 0:02:46]}  N7f6 {[%clk 0:01:55]} 25. g4 {[%clk 0:02:44]}  h6 {[%clk 0:01:54]} 26. h4 {[%clk 0:02:43]}  g5 {[%clk 0:01:55]} 27. hxg5 {[%clk 0:02:42]}  hxg5 {[%clk 0:01:56]} 28. Kg2 {[%clk 0:02:42]}  Kg7 {[%clk 0:01:55]} 29. Kg3 {[%clk 0:02:42]}  Bd6+ {[%clk 0:01:54]} 30. Kg2 {[%clk 0:02:42]}  Bf4 {[%clk 0:01:54]} 31. Rc2 {[%clk 0:02:40]}  Bd2 {[%clk 0:01:50]} 32. Rd1 {[%clk 0:02:38]}  Nf4+ {[%clk 0:01:47]} 33. Kf1 {[%clk 0:02:36]}  Rbd8 {[%clk 0:01:39]} 34. Rdxd2 {[%clk 0:02:30]}  cxd2 {[%clk 0:01:38]} 35. Rxd2 {[%clk 0:02:31]}  Rc8 {[%clk 0:01:30]} 36. Bb2 {[%clk 0:02:28]}  N6d5 {[%clk 0:01:28]} 37. Kg1 {[%clk 0:02:15]}  Kg8 {[%clk 0:01:19]} 38. Nc5 {[%clk 0:02:13]}  Ra8 {[%clk 0:01:10]} 39. Be4 {[%clk 0:02:10]}  Ra2 {[%clk 0:01:07]} 40. Bb1 {[%clk 0:02:11]}  Ra5 {[%clk 0:01:04]} 41. Ne4 {[%clk 0:02:10]}  Rc8 {[%clk 0:00:58]} 42. Nxg5 {[%clk 0:02:06]}  Nc3 {[%clk 0:00:53]} 43. Bh7+ {[%clk 0:01:54]}  Kg7 {[%clk 0:00:50]} 44. d5 {[%clk 0:01:51]}  Rxd5 {[%clk 0:00:39]} 45. Rxd5 {[%clk 0:01:50]}  exd5 {[%clk 0:00:31]} 46. Bf5 {[%clk 0:01:48]}  Ra8 {[%clk 0:00:29]} 47. Kh2 {[%clk 0:01:44]}  Ra2 {[%clk 0:00:29]} 48. Bc1 {[%clk 0:01:42]}  Rxf2+ {[%clk 0:00:29]} 49. Kg3 {[%clk 0:01:41]}  Nfe2+ {[%clk 0:00:22]} 50. Kxf2 {[%clk 0:01:41]}  Nxc1 {[%clk 0:00:22]} 51. Bc2 {[%clk 0:01:40]}  Kf6 {[%clk 0:00:18]} 52. Nf3 {[%clk 0:01:39]}  Ne4+ {[%clk 0:00:17]} 53. Ke3 {[%clk 0:01:36]}  Ng5 {[%clk 0:00:16]} 54. Nd4 {[%clk 0:01:33]}  Na2 {[%clk 0:00:15]} 55. Nc6 {[%clk 0:01:31]}  Ne6 {[%clk 0:00:13]} 56. Bf5 {[%clk 0:01:28]}  Nc5 {[%clk 0:00:13]} 57. Bc2 {[%clk 0:01:26]}  Kg5 {[%clk 0:00:12]} 58. Kf3 {[%clk 0:01:24]}  Nc1 {[%clk 0:00:10]} 59. Ne5 {[%clk 0:01:22]}  N1xb3 {[%clk 0:00:07]} 60. Nxf7+ {[%clk 0:01:23]}  Kf6 {[%clk 0:00:08]} 61. Bxb3 {[%clk 0:01:14]}  Nxb3 {[%clk 0:00:07]} 62. Nd6 {[%clk 0:01:15]} 1-0


[Site "https://www.chess.com"]

[Event "Titled Tuesday Blitz April 18 Late 2023"]
[White "Jovic, Stanoje"]
[Black "Kraus, Tomas"]
[WhiteFideId "905020"]
[BlackFideId "331708"]
[WhiteElo "2236"]
[BlackElo "2389"]
[Result "1-0"]
[Round "04"]
[TimeControl "180+2"]
[Date "2023.04.18"]
[WhiteClock "0:02:04"]
[BlackClock "0:01:46"]

1. c4 {[%clk 0:03:00]}  Nf6 {[%clk 0:02:54]} 2. g3 {[%clk 0:03:01]}  g6 {[%clk 0:02:53]} 3. Bg2 {[%clk 0:03:01]}  Bg7 {[%clk 0:02:53]} 4. Nc3 {[%clk 0:03:01]}  c5 {[%clk 0:02:53]} 5. Nf3 {[%clk 0:03:01]}  O-O {[%clk 0:02:52]} 6. O-O {[%clk 0:03:01]}  d5 {[%clk 0:02:53]} 7. cxd5 {[%clk 0:03:01]}  Nxd5 {[%clk 0:02:54]} 8. Nxd5 {[%clk 0:03:01]}  Qxd5 {[%clk 0:02:53]} 9. d3 {[%clk 0:03:01]}  Nc6 {[%clk 0:02:52]} 10. Be3 {[%clk 0:03:01]}  Qd6 {[%clk 0:02:51]} 11. Rc1 {[%clk 0:03:01]}  b6 {[%clk 0:02:51]} 12. d4 {[%clk 0:03:01]}  Nxd4 {[%clk 0:02:24]} 13. Nxd4 {[%clk 0:02:59]}  cxd4 {[%clk 0:02:25]} 14. Bxa8 {[%clk 0:02:59]}  dxe3 {[%clk 0:02:25]} 15. Qxd6 {[%clk 0:02:50]}  exf2+ {[%clk 0:02:23]} 16. Kxf2 {[%clk 0:02:49]}  exd6 {[%clk 0:02:24]} 17. Bd5 {[%clk 0:02:40]}  Be6 {[%clk 0:02:20]} 18. Bxe6 {[%clk 0:02:32]}  fxe6+ {[%clk 0:02:21]} 19. Kg2 {[%clk 0:02:32]}  Rxf1 {[%clk 0:02:18]} 20. Kxf1 {[%clk 0:02:32]}  Bxb2 {[%clk 0:02:19]} 21. Rc7 {[%clk 0:02:28]}  Bd4 {[%clk 0:02:04]} 22. Rxa7 {[%clk 0:02:27]}  Bc5 {[%clk 0:01:51]} 23. Re7 {[%clk 0:02:18]}  e5 {[%clk 0:01:52]} 24. e4 {[%clk 0:02:11]}  h5 {[%clk 0:01:51]} 25. a4 {[%clk 0:02:08]}  Kf8 {[%clk 0:01:46]} 26. Rd7 {[%clk 0:02:04]} 1-0


[Site "https://www.chess.com"]

[Event "Titled Tuesday Blitz April 18 Late 2023"]
[White "Ardila, Oscar Humberto"]
[Black "Kovalevsky, Stanislav"]
[WhiteFideId "4404742"]
[BlackFideId "13508598"]
[WhiteElo "1918"]
[BlackElo "2174"]
[Result "0-1"]
[Round "04"]
[TimeControl "180+2"]
[Date "2023.04.18"]
[WhiteClock "0:00:13"]
[BlackClock "0:00:29"]

1. d4 {[%clk 0:03:00]}  d5 {[%clk 0:02:54]} 2. Nf3 {[%clk 0:02:58]}  Nf6 {[%clk 0:02:54]} 3. Bg5 {[%clk 0:02:58]}  Nbd7 {[%clk 0:02:53]} 4. Nbd2 {[%clk 0:02:58]}  Ne4 {[%clk 0:02:52]} 5. Nxe4 {[%clk 0:02:55]}  dxe4 {[%clk 0:02:53]} 6. Nd2 {[%clk 0:02:55]}  h6 {[%clk 0:02:48]} 7. Bh4 {[%clk 0:02:53]}  g5 {[%clk 0:02:47]} 8. Bg3 {[%clk 0:02:53]}  f5 {[%clk 0:02:47]} 9. e3 {[%clk 0:02:51]}  Nf6 {[%clk 0:02:47]} 10. Be2 {[%clk 0:02:49]}  Bg7 {[%clk 0:02:43]} 11. Bh5+ {[%clk 0:02:47]}  Nxh5 {[%clk 0:02:39]} 12. Qxh5+ {[%clk 0:02:46]}  Kf8 {[%clk 0:02:40]} 13. O-O {[%clk 0:02:39]}  Be6 {[%clk 0:02:39]} 14. f3 {[%clk 0:02:09]}  Bf7 {[%clk 0:02:27]} 15. Qh3 {[%clk 0:02:09]}  f4 {[%clk 0:02:28]} 16. Bf2 {[%clk 0:01:46]}  Bxd4 {[%clk 0:02:03]} 17. exd4 {[%clk 0:01:44]}  e3 {[%clk 0:02:03]} 18. c3 {[%clk 0:01:09]}  exd2 {[%clk 0:01:58]} 19. Rad1 {[%clk 0:01:07]}  Qc8 {[%clk 0:01:22]} 20. Qxc8+ {[%clk 0:00:57]}  Rxc8 {[%clk 0:01:23]} 21. Rxd2 {[%clk 0:00:57]}  e6 {[%clk 0:01:06]} 22. Re1 {[%clk 0:00:53]}  c6 {[%clk 0:01:06]} 23. Re5 {[%clk 0:00:48]}  Rd8 {[%clk 0:01:05]} 24. h4 {[%clk 0:00:47]}  Rd5 {[%clk 0:01:04]} 25. Rde2 {[%clk 0:00:43]}  Rg8 {[%clk 0:01:02]} 26. Kh2 {[%clk 0:00:41]}  Ke7 {[%clk 0:01:00]} 27. c4 {[%clk 0:00:32]}  Rxe5 {[%clk 0:00:57]} 28. Rxe5 {[%clk 0:00:32]}  Kd7 {[%clk 0:00:55]} 29. g3 {[%clk 0:00:18]}  g4 {[%clk 0:00:30]} 30. fxg4 {[%clk 0:00:15]}  Rxg4 {[%clk 0:00:30]} 31. Re4 {[%clk 0:00:13]}  fxg3+ {[%clk 0:00:29]} 32. Bxg3 {[%clk 0:00:13]}  Rxe4 {[%clk 0:00:29]} 0-1


[Site "https://www.chess.com"]